bitfinex-derivatives/quotes_SOLF0:USTF0_20240907
["timestamp","ask_amount","ask_price","bid_price","bid_amount"]
[1725670630646,29.9147,125.12,125.08,3.9983]
[1725670631743,3.9981,125.09,125.02,24.58]
[1725670631944,3.9981,125.09,125.03,3.94640547]
[1725670632245,3.9981,125.09,125.05,3.9991]
[1725670633448,3.9981,125.09,125.03,3.94640547]
[1725670633651,3.9978,125.1,125.03,3.94640547]
[1725670633854,3.9978,125.1,125.06,3.9988]
[1725670634057,25.9174,125.12,125.03,24.58]
[1725670634253,3.9975,125.11,125.03,24.58]
[1725670634450,3.9975,125.11,125.07,3.9985]
[1725670636052,6.7692,125.13,125.05,24.58]
[1725670636552,2.7722,125.13,125.05,24.58]
[1725670637148,3.9972,125.12,125.09,3.9979]
[1725670638153,6.7692,125.13,125.1,3.9976]
[1725670638655,6.7692,125.13,125.05,24.58]
[1725670638656,2.7722,125.13,125.05,24.58]
[1725670639157,3.9972,125.12,125.05,24.58]
[1725670639454,2.7722,125.13,125.04,0.3178]
[1725670639669,3.998,125.1,125.06,3.999]
[1725670639952,3.94426487,125.1,125.06,3.999]
[1725670640152,3.94426487,125.1,125.04,0.3178]
[1725670640153,25.9743,125.12,125.04,0.3178]
[1725670640350,3.9979,125.1,125.06,3.999]
[1725670640549,3.9979,125.1,125.04,0.3178]
[1725670640746,3.9979,125.1,125.06,3.9987]
[1725670640948,25.9743,125.12,125.06,3.9987]
[1725670641151,3.92707243,125.11,125.06,3.9987]
[1725670641557,3.998,125.1,125.06,3.9987]
[1725670642147,3.9981,125.09,125.06,3.9987]
[1725670642352,3.9981,125.09,125.05,3.9991]
[1725670643154,3.9981,125.09,125.06,3.999]
[1725670643959,3.9979,125.1,125.07,3.9987]
[1725670644657,3.9981,125.09,125.06,3.9989]
[1725670646357,3.93377752,125.11,125.03,3.99040107]
[1725670646658,25.9743,125.12,125.03,24.58]
[1725670646963,4.07806616,125.11,125.04,4.09206364]
[1725670647258,3.9979,125.1,125.06,3.9988]
[1725670648664,3.9979,125.1,125.07,3.9986]
[1725670651566,29.9716,125.12,125.04,4.09206364]
[1725670651772,2.7722,125.13,125.05,24.58]
[1725670651969,2.7722,125.13,125.05,28.6391942]
[1725670652170,6.769,125.13,125.1,3.9976]
[1725670652670,1.4307,125.13,125.07,24.58]
[1725670652866,1.394,125.16,125.08,24.58]
[1725670653269,3.9966,125.14,125.11,3.9974]
[1725670655467,3.9966,125.14,125.1,3.9976]
[1725670656273,3.9969,125.13,125.1,3.9976]
[1725670661671,24.58,125.14,125.05,4.0591942]
[1725670661870,1.4305,125.12,125.02,0.3176]
[1725670662077,13.89956582,125.11,125.05,9.83]
[1725670662274,3.998,125.1,125.07,3.9987]
[1725670663170,13.89956582,125.11,125.02,4.3259964]
[1725670663371,13.89956582,125.11,125.05,9.83]
[1725670663678,3.9976,125.11,125.08,3.9984]
[1725670664278,8.00527807,125.11,125.08,3.9984]
[1725670665872,3.9976,125.11,125.08,3.9984]
[1725670666379,26.0005,125.12,125.03,24.57]
[1725670666574,3.94409587,125.11,125.03,24.57]
[1725670667067,3.94409587,125.11,125.03,28.55336627]
[1725670667273,26.0005,125.12,125.07,3.9985]
[1725670667773,26.0005,125.12,125.03,28.55336627]
[1725670668270,4.03614727,125.11,125.03,28.55336627]
[1725670668471,3.998,125.1,125.03,28.55336627]
[1725670668968,3.998,125.1,125.06,3.9988]
[1725670671681,3.998,125.1,125.07,3.9987]
[1725670672975,1.3561,125.11,125.05,24.57]
[1725670673175,1.4305,125.12,125.06,24.57]
[1725670673579,5.4277,125.12,125.06,24.57]
[1725670674079,5.4277,125.12,125.03,3.98336627]
[1725670674379,3.9974,125.11,125.08,3.9982]
[1725670675383,3.9978,125.1,125.07,3.9986]
[1725670678485,7.90778365,125.11,125.08,3.9983]
[1725670681583,3.9976,125.11,125.08,3.9983]
[1725670681778,7.89988333,125.11,125.08,3.9983]
[1725670682180,3.9976,125.11,125.08,3.9983]
[1725670682580,3.998,125.1,125.05,28.50417742]
[1725670682782,1.4305,125.12,125.01,107.30341535]
[1725670682983,5.43071614,125.11,125.03,24.57]
[1725670683286,5.43071614,125.11,125.03,28.60334828]
[1725670683491,1.3757,125.11,125.03,28.60334828]
[1725670683673,3.9978,125.1,125.07,3.9985]
[1725670685076,3.9981,125.09,125.06,3.9988]
[1725670685282,5.46022986,125.11,125.03,28.60334828]
[1725670686185,3.9982,125.09,125.03,28.60334828]
[1725670687880,3.9982,125.09,125.06,3.9989]
[1725670689987,3.9976,125.11,125.07,3.9985]
[1725670690289,11.2605,125.12,125.05,9.83]
[1725670690786,3.998,125.1,125.05,9.83]
[1725670690978,8.00415807,125.1,125.06,3.999]
[1725670692388,8.00415807,125.1,125.07,3.9987]
[1725670693488,4.00615807,125.1,125.05,9.83]
[1725670693696,9.83,125.11,125.05,9.83]
[1725670693885,3.9982,125.09,125.05,3.9991]
[1725670694193,8.01155548,125.09,125.05,3.9991]
[1725670695988,8.01155548,125.09,125.06,3.999]
[1725670696888,8.01155548,125.09,125.05,3.9992]
[1725670697687,3.9982,125.09,125.06,3.9989]
[1725670698090,5.3782,125.1,125.06,3.9989]
[1725670698297,1.3803,125.1,125.06,3.9989]
[1725670698595,5.46035781,125.1,125.06,3.9989]
[1725670698796,1.3803,125.1,125.06,3.9989]
[1725670699187,3.9982,125.09,125.06,3.9989]
[1725670701097,9.83,125.09,125.02,3.99480119]
[1725670701283,9.83,125.09,124.94,99.93633295]
[1725670701284,9.83,125.08,125.0,9.83]
[1725670701599,9.83,125.06,125.0,9.83]
[1725670702495,3.9997,125.04,125.01,4.0005]
[1725670702691,9.83,125.06,125.01,4.0005]
[1725670702893,3.9995,125.05,125.01,4.0005]
[1725670703396,9.83,125.05,125.0,4.0007]
[1725670703692,11.1949,125.05,125.0,4.0007]
[1725670704289,4.0,125.03,125.0,4.0007]
[1725670704600,1.3649,125.05,125.01,4.0005]
[1725670705794,3.9998,125.04,125.01,4.0005]
[1725670706501,3.9998,125.04,125.0,13.8308]
[1725670707701,3.9998,125.04,125.01,4.0005]
[1725670708699,11.1949,125.05,124.95,0.3182]
[1725670708907,11.1949,125.05,124.98,9.83]
[1725670709300,4.0,125.03,125.0,4.0009]
[1725670710001,3.9997,125.04,125.01,4.0006]
[1725670718708,13.78358572,125.03,124.95,10.1482]
[1725670719705,13.78358572,125.03,124.97,9.83]
[1725670719912,11.1895,125.04,124.97,9.83]
[1725670720505,11.1895,125.04,124.99,4.0012]
[1725670721210,3.97871381,125.03,124.99,4.0012]
[1725670722409,4.0005,125.02,124.99,4.0012]
[1725670722604,9.83,125.0,124.94,99.93633295]
[1725670723404,4.0014,124.99,124.94,99.93633295]
[1725670723605,3.99911952,125.0,124.94,99.93633295]
[1725670723811,9.83,124.99,124.94,99.93633295]
[1725670724109,9.83,124.99,124.94,95.997]
[1725670724309,4.0018,124.98,124.94,99.9998]
[1725670724808,9.83,124.99,124.94,99.9998]
[1725670725411,4.0018,124.98,124.94,99.9998]
[1725670727112,4.0018,124.98,124.94,95.997]
[1725670727419,1.3468,125.0,124.94,95.997]
[1725670727420,1.3468,125.0,124.94,105.827]
[1725670727811,5.348,125.0,124.96,4.002]
[1725670728716,1.3468,125.0,124.97,4.0019]
[1725670729416,5.3479,125.0,124.97,4.0019]
[1725670730320,4.0013,124.99,124.96,4.0022]
[1725670730506,5.39002569,125.01,124.96,9.83]
[1725670730507,1.3689,125.01,124.96,9.83]
[1725670731721,4.0012,125.0,124.96,13.8321]
[1725670732921,4.0012,125.0,124.97,4.0019]
[1725670738724,5.3697,125.01,124.97,4.0018]
[1725670739327,5.3697,125.01,124.98,4.0015]
[1725670749929,1.2991,125.03,124.98,9.83]
[1725670750530,5.2992,125.03,125.0,4.0008]
[1725670751034,1.3595,125.04,124.99,9.83]
[1725670751232,4.06739573,125.03,124.95,0.3201]
[1725670751433,4.06739573,125.03,124.98,9.83]
[1725670751634,1.3595,125.04,124.98,13.76270093]
[1725670751835,4.0001,125.03,125.0,4.0007]
[1725670752339,5.3593,125.04,125.01,4.0006]
[1725670752834,4.0,125.03,125.01,4.0006]
[1725670753039,4.0,125.03,125.0,4.0008]
[1725670754735,1.3595,125.04,124.98,13.76270093]
[1725670754736,5.3593,125.04,125.01,4.0006]
[1725670756542,4.0001,125.03,125.0,4.0009]
[1725670764152,7.98873547,125.02,124.99,4.0012]
[1725670764348,9.31633547,125.02,124.99,4.0012]
[1725670765042,5.3281,125.02,124.99,4.0012]
[1725670770153,5.3281,125.02,125.0,4.0009]
[1725670770154,4.0005,125.02,125.0,4.0009]
[1725670771649,4.0001,125.03,125.0,4.0009]
[1725670774450,4.0001,125.03,124.98,9.83]
[1725670774451,4.0001,125.03,124.98,13.91587894]
[1725670775246,4.0001,125.03,125.0,4.0008]
[1725670775847,4.0004,125.02,124.99,4.0012]
[1725670777655,4.0002,125.03,125.0,4.0009]
[1725670782157,4.0004,125.02,124.99,4.001]
[1725670782457,1.3595,125.04,124.98,9.83]
[1725670783256,4.0001,125.03,125.0,4.0007]
[1725670786756,4.0004,125.02,125.0,4.0007]
[1725670788665,4.0004,125.02,124.99,4.0011]
[1725670793068,4.0002,125.03,125.0,4.0008]
[1725670794769,4.0002,125.03,125.0,13.8308]
[1725670795968,9.83,125.01,124.94,95.997]
[1725670796164,9.83,124.99,124.94,95.997]
[1725670796462,4.0021,124.97,124.94,95.997]
[1725670797470,4.0023,124.96,124.94,95.997]
[1725670798071,4.0026,124.95,124.94,95.997]
[1725670800374,4.0024,124.96,124.94,95.997]
[1725670802674,15.20606946,124.99,124.94,95.997]
[1725670802675,4.0022,124.97,124.94,99.9998]
[1725670802871,1.2934,124.99,124.95,9.83]
[1725670803271,5.2949,124.99,124.95,9.83]
[1725670803475,5.2949,124.99,124.95,13.8323]
[1725670803669,5.2949,124.99,124.95,9.83]
[1725670804670,4.0015,124.99,124.95,9.83]
[1725670805178,1.347,125.05,124.96,9.83]
[1725670805179,13.85065508,125.03,124.96,9.83]
[1725670805469,1.347,125.05,124.94,95.997]
[1725670805470,9.83,125.02,124.94,105.827]
[1725670806276,4.001,125.0,124.96,4.0021]
[1725670807368,9.83,125.01,124.95,4.0025]
[1725670807576,11.2022,124.99,124.94,95.997]
[1725670807772,4.0018,124.98,124.94,99.9996]
[1725670808274,4.0018,124.98,124.94,95.997]
[1725670808577,4.0018,124.98,124.95,4.0024]
[1725670810874,1.3722,124.99,124.94,105.827]
[1725670811083,1.3509,125.02,124.96,9.83]
[1725670811374,1.3509,125.02,124.99,4.0011]
[1725670811987,5.3512,125.02,124.99,4.0011]
[1725670813881,1.3665,125.07,125.01,9.83]
[1725670814087,1.3665,125.07,125.02,9.83]
[1725670814977,5.3655,125.07,125.03,3.9998]
[1725670815283,1.3665,125.07,125.03,3.9998]
[1725670815579,9.83,125.04,124.94,95.997]
[1725670815780,3.96342654,125.03,124.97,9.83]
[1725670815987,3.96342654,125.03,124.97,13.87913353]
[1725670816682,4.0003,125.02,124.97,13.87913353]
[1725670816886,4.02232602,125.02,124.97,9.83]
[1725670817184,11.1642,125.03,124.97,4.0017]
[1725670817578,4.0008,125.01,124.97,4.0017]
[1725670820078,4.0008,125.01,124.98,4.0015]
[1725670820487,4.0004,125.02,124.98,4.0015]
[1725670824590,4.0004,125.02,124.98,13.8315]
[1725670824992,4.0004,125.02,124.99,4.0013]
[1725670825686,1.3342,125.03,124.99,9.83]
[1725670825896,1.3747,125.06,124.99,9.83]
[1725670826187,1.3747,125.06,125.01,9.83]
[1725670826392,1.3665,125.07,125.02,9.83]
[1725670827189,5.3654,125.07,125.04,3.9997]
[1725670827590,1.3665,125.07,125.04,3.9997]
[1725670828183,1.3665,125.07,125.0,4.00576218]
[1725670828388,1.3997,125.08,124.96,0.3198]
[1725670828389,1.3997,125.08,125.04,9.83]
[1725670828794,5.3761,125.09,125.06,3.999]
[1725670828993,1.3778,125.09,125.06,3.999]
[1725670831190,9.4558105,125.09,125.06,3.999]
[1725670835702,3.9984,125.08,125.05,13.8293]
[1725670836202,9.4560105,125.09,125.06,3.999]
[1725670836399,5.3761,125.09,125.06,3.999]
[1725670837303,1.3778,125.09,125.07,3.9986]
[1725670837701,1.3778,125.09,125.06,9.83]
[1725670837902,1.3778,125.09,125.06,13.8289]
[1725670840100,7.97942231,125.1,125.06,13.8289]
[1725670840600,13.8994,125.12,125.07,9.83]
[1725670840601,4.0694,125.12,125.07,9.83]
[1725670840800,4.0694,125.12,125.06,9.83]
[1725670840801,4.04391914,125.11,125.06,9.83]
[1725670841202,4.0694,125.12,125.06,9.83]
[1725670841601,7.9901216,125.12,125.06,9.83]
[1725670841801,17.8201216,125.12,124.99,8.0025]
[1725670842109,17.8201216,125.12,125.05,9.83]
[1725670842510,3.9983,125.09,125.05,13.8292]
[1725670843509,3.9984,125.08,125.05,13.8292]
[1725670844407,3.9987,125.07,125.05,9.83]
[1725670844908,9.83,125.09,125.02,9.83]
[1725670845101,32.0101216,125.12,125.02,9.83]
[1725670845102,9.83,125.08,125.02,13.8303]
[1725670845403,2.7414,125.07,125.02,13.8303]
[1725670845811,2.7414,125.07,125.03,4.0]
[1725670846008,2.7414,125.07,124.99,4.05623778]
[1725670846210,3.9992,125.06,125.02,9.83]
[1725670846406,3.9992,125.06,125.02,13.8302]
[1725670847508,3.9992,125.06,125.02,4.0002]
[1725670847712,3.9992,125.06,125.02,13.8302]
[1725670849808,3.9992,125.06,125.03,9.83]
[1725670850117,6.7403,125.07,125.04,9.83]
[1725670851516,3.9989,125.07,125.04,13.8296]
[1725670851701,3.9989,125.07,125.04,9.83]
[1725670852919,3.9985,125.08,125.06,9.83]
[1725670854112,9.83,125.1,125.04,3.9995]
[1725670854919,2.7057,125.11,125.04,3.9995]
[1725670855212,3.9988,125.07,125.04,3.9995]
[1725670857519,3.9988,125.07,125.04,13.8295]
[1725670858214,9.83,125.09,125.02,9.83]
[1725670858412,1.42,125.08,125.02,9.83]
[1725670859411,3.9993,125.06,125.02,13.8301]
[1725670860313,3.9993,125.06,125.03,3.9999]
[1725670860515,1.42,125.08,125.03,9.83]
[1725670860719,1.42,125.08,125.04,9.83]
[1725670861115,3.9991,125.06,125.04,9.83]
[1725670862415,12.5357,125.11,125.04,13.8297]
[1725670862722,13.8986,125.11,125.04,13.8297]
[1725670863310,13.8986,125.11,125.05,3.9993]
[1725670863520,4.0686,125.11,125.06,9.83]
[1725670864421,3.9982,125.09,125.06,9.83]
[1725670864921,3.9982,125.09,125.06,13.829]
[1725670867123,3.998,125.1,125.07,3.9987]
[1725670867324,131.13983418,125.13,125.09,9.83]
[1725670867522,135.09441081,125.13,125.09,9.83]
[1725670868323,3.9973,125.12,125.09,13.8281]
[1725670870729,3.9974,125.11,125.08,3.9983]
[1725670870917,144.92680995,125.13,125.05,9.83]
[1725670871124,9.83,125.11,125.05,9.83]
[1725670871428,3.9983,125.09,125.05,9.83]
[1725670872126,3.9983,125.09,125.06,3.9988]
[1725670872429,6.7222,125.1,125.07,9.83]
[1725670872929,3.9981,125.09,125.07,9.83]
[1725670873132,2.7243,125.1,125.07,9.83]
[1725670873730,6.7223,125.1,125.07,9.83]
[1725670874520,3.9976,125.11,125.08,9.83]
[1725670875020,3.9972,125.12,125.09,9.83]
[1725670875426,135.09680995,125.13,125.09,9.83]
[1725670875621,135.09680995,125.13,125.08,9.83]
[1725670875826,135.09680995,125.13,125.08,13.8282]
[1725670876726,144.92680995,125.13,125.07,3.9987]
[1725670877235,144.92680995,125.13,125.06,13.8289]
[1725670878130,3.9979,125.1,125.07,3.9987]
[1725670882039,3.9975,125.11,125.08,3.9984]
[1725670882233,135.09680995,125.13,125.08,9.83]
[1725670882639,3.9973,125.12,125.09,13.828]
[1725670883742,3.9978,125.1,125.07,3.9986]
[1725670884041,135.09680995,125.13,125.06,9.83]
[1725670884240,3.9973,125.12,125.08,13.8282]
[1725670884439,135.09680995,125.13,125.08,13.8282]
[1725670885032,135.09680995,125.13,125.08,9.83]
[1725670885640,3.9979,125.1,125.07,9.83]
[1725670887443,3.9979,125.1,125.07,13.8285]
[1725670889247,3.9975,125.11,125.08,3.9984]
[1725670889445,3.9975,125.11,125.09,9.83]
[1725670889941,9.83,125.11,125.01,4.25588282]
[1725670890141,9.83,125.09,124.95,39.30440043]
[1725670890341,11.1918,125.08,125.01,13.8306]
[1725670890940,3.9996,125.05,125.01,13.8306]
[1725670891143,3.95663732,125.04,125.0,9.83]
[1725670891342,9.83,125.06,125.0,9.83]
[1725670891641,1.3568,125.05,125.0,9.83]
[1725670891848,1.3568,125.05,125.0,13.8308]
[1725670891849,3.9998,125.04,125.0,13.8308]
[1725670892249,3.9998,125.04,125.01,9.83]
[1725670893248,4.0003,125.03,124.96,0.3179]
[1725670893451,4.0003,125.03,124.99,9.83]
[1725670893641,4.0003,125.03,124.96,0.3179]
[1725670893837,4.0003,125.03,124.99,9.83]
[1725670894244,4.0003,125.03,124.96,0.3179]
[1725670894450,4.0003,125.03,124.94,95.997]
[1725670894451,4.0003,125.03,124.99,13.8313]
[1725670895648,3.9999,125.04,125.01,9.83]
[1725670896840,3.9999,125.04,125.01,13.8306]
[1725670897044,5.3563,125.05,125.02,9.83]
[1725670897849,1.3568,125.05,125.02,13.8301]
[1725670899349,5.3562,125.05,125.02,13.8301]
[1725670899751,1.3568,125.05,125.01,13.8305]
[1725670899952,4.0,125.04,125.01,9.83]
[1725670900153,1.3568,125.05,125.0,9.83]
[1725670900154,2.7605,125.05,125.0,9.83]
[1725670901356,4.0003,125.03,125.0,13.8309]
[1725670901950,4.0003,125.03,125.0,4.0009]
[1725670903156,4.0003,125.03,124.98,24.6]
[1725670903157,4.0003,125.03,124.99,4.0011]
[1725670903750,4.0003,125.03,124.98,24.6]
[1725670904148,4.0003,125.03,124.99,4.0011]
[1725670904456,4.0003,125.03,124.98,24.6]
[1725670904653,4.0003,125.03,124.99,4.0011]
[1725670905347,4.0003,125.03,125.0,4.0009]
[1725670908261,4.0003,125.03,124.99,4.0011]
[1725670908461,4.0004,125.02,124.99,4.0011]
[1725670908853,1.3568,125.05,125.01,24.6]
[1725670909067,1.3618,125.08,125.01,24.6]
[1725670909254,1.3618,125.08,125.03,3.9998]
[1725670910162,3.9992,125.06,125.03,3.9998]
[1725670910566,3.9992,125.06,125.02,4.0002]
[1725670911365,3.9994,125.05,125.02,4.0002]
[1725670911769,3.9994,125.05,125.01,4.0005]
[1725670912269,3.92927141,125.06,125.01,4.0005]
[1725670912466,1.3752,125.05,125.01,4.0005]
[1725670912769,3.96047516,125.04,125.01,4.0005]
[1725670913273,7.96037516,125.04,125.01,4.0005]
[1725670913580,3.96047516,125.04,125.0,28.6008]
[1725670913868,3.96047516,125.04,124.98,24.6]
[1725670914075,4.0005,125.02,124.98,24.6]
[1725670915673,4.0001,125.03,125.0,4.0009]
[1725670918076,3.9998,125.04,125.01,4.0005]
[1725670918578,4.06801343,125.04,125.01,4.0005]
[1725670919375,4.0,125.03,125.01,4.0005]
[1725670919573,4.0,125.03,125.0,4.0008]
[1725670920279,1.3618,125.08,125.02,24.6]
[1725670920478,1.3618,125.08,125.02,28.52789959]
[1725670920677,1.3618,125.08,125.05,3.9991]
[1725670921779,3.9983,125.09,125.06,3.999]
[1725670921978,3.9983,125.09,125.06,13.829]
[1725670923981,5.4064,125.1,125.06,13.829]
[1725670924481,1.4086,125.1,125.06,13.829]
[1725670924981,3.9983,125.09,125.06,9.83]
[1725670925678,1.4086,125.1,125.04,13.8295]
[1725670925881,11.2386,125.1,125.01,3.99040207]
[1725670926081,11.2386,125.1,125.02,9.83]
[1725670926485,3.9989,125.07,125.03,3.9999]
[1725670928182,9.83,125.05,124.95,0.3186]
[1725670928383,4.06398736,125.04,124.98,9.83]
[1725670929086,9.83,125.04,124.95,0.3186]
[1725670929283,3.93870261,125.04,124.98,9.83]
[1725670929483,11.2354,125.05,124.98,9.83]
[1725670929880,1.4054,125.05,124.98,9.83]
[1725670930083,9.83,125.04,124.98,9.83]
[1725670930278,4.0005,125.02,124.98,13.8315]
[1725670932689,4.0007,125.01,124.98,9.83]
[1725670934295,4.001,125.0,124.97,4.0018]
[1725670935590,4.001,125.0,124.97,13.8318]
[1725670937792,4.0015,124.99,124.96,4.0021]
[1725670938293,4.0016,124.98,124.95,13.8324]
[1725670939188,4.0014,124.99,124.96,13.8321]
[1725670939791,4.0011,125.0,124.97,13.8319]
[1725670940995,4.0011,125.0,124.97,9.83]
[1725670942795,4.0011,125.0,124.96,13.8321]
[1725670943800,4.0013,124.99,124.96,13.8321]
[1725670946196,4.001,125.0,124.97,13.8318]
[1725670949200,4.0013,124.99,124.97,9.83]
[1725670950396,4.0013,124.99,124.96,13.8321]
[1725670953100,4.0011,125.0,124.97,9.83]
[1725670954001,4.0011,125.0,124.97,13.8318]
[1725670954206,4.001,125.0,124.96,9.83]
[1725670954402,1.3351,125.01,124.96,13.832]
[1725670955003,4.0011,125.0,124.96,13.832]
[1725670955204,1.3351,125.01,124.96,13.832]
[1725670956206,4.0011,125.0,124.96,4.002]
[1725670958299,4.0013,124.99,124.96,4.002]
[1725670960101,4.0013,124.99,124.95,9.83]
[1725670960102,4.0013,124.99,124.95,4.0024]
[1725670964008,9.83,124.97,124.94,95.997]
[1725670964510,1.3333,124.98,124.87,4.005]
[1725670964511,4.0039,124.91,124.87,4.005]
[1725670965706,4.0039,124.91,124.88,4.0048]
[1725670966307,9.83,124.91,124.86,1.4026]
[1725670967413,151.72950194,124.92,124.81,4.04950084]
[1725670967612,9.83,124.88,124.81,9.83]
[1725670967810,9.83,124.88,124.81,3.94977522]
[1725670968015,4.0056,124.86,124.8,24.63]
[1725670968213,4.0056,124.86,124.81,2.783]
[1725670968611,4.0056,124.86,124.81,6.7898]
[1725670968811,24.63,124.91,124.81,27.413]
[1725670969020,24.63,124.91,124.82,1.3706]
[1725670969218,24.63,124.91,124.83,4.0063]
[1725670969614,155.74816393,124.92,124.85,4.0057]
[1725670969808,155.74816393,124.92,124.83,24.63]
[1725670970416,24.63,124.89,124.8,4.05712785]
[1725670970714,24.63,124.89,124.81,2.6764]
[1725670971711,4.0053,124.87,124.83,4.0064]
[1725670971911,4.0053,124.87,124.81,2.6764]
[1725670972319,4.0049,124.88,124.82,24.63]
[1725670972521,4.0049,124.88,124.83,1.3793]
[1725670972821,4.0049,124.88,124.84,4.006]
[1725670973321,4.0049,124.88,124.83,1.3793]
[1725670973322,4.0046,124.89,124.85,4.0057]
[1725670973925,4.0046,124.89,124.84,4.0059]
[1725670975921,155.74816393,124.92,124.85,24.63]
[1725670976119,155.74816393,124.92,124.86,2.8547]
[1725670976322,151.72950194,124.92,124.86,2.8547]
[1725670976525,1.3391,124.98,124.86,2.8547]
[1725670976725,24.63,124.96,124.86,2.8547]
[1725670977219,4.0035,124.92,124.86,2.8547]
[1725670977526,4.0051262,124.98,124.91,24.63]
[1725670977713,24.63,125.0,124.91,24.63]
[1725670978028,1.16189512,124.99,124.91,28.6337]
[1725670978320,3.99182819,124.98,124.91,24.63]
[1725670978520,4.0018,124.98,124.93,4.0029]
[1725670978824,28.6936,125.01,124.92,27.3]
[1725670980128,4.0636,125.01,124.92,27.3]
[1725670980828,4.0016,124.98,124.94,4.0027]
[1725670981323,4.0014,124.99,124.92,27.3]
[1725670982520,4.0005,125.02,124.96,24.63]
[1725670983225,4.01585846,125.05,124.99,4.0012]
[1725670983429,4.01585846,125.05,124.97,1.4063]
[1725670983929,24.63,125.04,124.94,24.63]
[1725670984231,28.67498363,125.04,124.94,26.0363]
[1725670984726,4.0008,125.01,124.94,26.0363]
[1725670985121,4.0492,125.09,124.97,24.63]
[1725670985322,1.16124804,125.08,124.99,24.63]
[1725670985524,5.13099105,125.08,125.01,24.63]
[1725670985729,1.16124804,125.07,125.01,24.63]
[1725670985928,24.63,125.11,125.01,24.63]
[1725670986125,1.16163539,125.1,125.01,24.63]
[1725670986326,3.9985,125.08,125.03,3.9998]
[1725670988832,3.9988,125.07,125.03,3.9998]
[1725670990826,3.9985,125.08,125.03,3.9998]
[1725670991224,28.72984591,125.08,124.98,2.784]
[1725670991427,24.63,125.06,124.98,2.784]
[1725670991622,28.62423958,125.06,124.98,2.784]
[1725670991836,3.99423958,125.06,124.99,28.6312]
[1725670992228,4.0,125.04,124.99,28.6312]
[1725670992940,4.0,125.04,125.0,4.0009]
[1725670993232,3.9995,125.05,125.0,4.0009]
[1725670993430,3.9995,125.05,125.0,5.3949]
[1725670993622,28.71984531,125.08,125.0,5.3949]
[1725670993823,3.9998,125.04,125.0,5.3949]
[1725670994133,28.71984531,125.08,124.99,24.63]
[1725670994330,5.26919882,125.07,124.99,24.63]
[1725670994536,1.16239717,125.06,124.99,28.6312]
[1725670994737,4.1068,125.07,124.99,28.6312]
[1725670994738,1.16238671,125.05,124.99,28.6312]
[1725670994932,4.0003,125.03,124.99,28.6312]
[1725670995737,4.0003,125.02,124.99,24.63]
[1725670997236,4.0,125.03,124.99,24.63]
[1725670997635,4.1068,125.07,124.99,24.63]
[1725670997946,4.0,125.04,125.0,4.0009]
[1725670999037,4.0002,125.03,124.99,28.6312]
[1725670999941,4.0002,125.03,125.0,4.0009]
[1725671001337,3.9999,125.04,125.01,4.0006]
[1725671002239,4.0487,125.13,125.03,3.9998]
[1725671002439,25.79236225,125.12,125.02,24.63]
[1725671002643,1.16236225,125.11,125.02,24.63]
[1725671003041,3.9992,125.06,125.02,28.6301]
[1725671005140,3.9992,125.06,125.03,3.9999]
[1725671007134,3.9989,125.07,125.03,3.9999]
[1725671008246,3.9989,125.07,125.03,5.3142]